[Event "*** Titled Tuesday 3|2 Blitz"]
[Site "Chess.com"]
[Date "2015.02.24"]
[Round "9"]
[White "GMNeiksans"]
[Black "jup1978"]
[Result "1-0"]
[WhiteElo "2507"]
[BlackElo "2160"]
[TimeControl "180+2"]
[EndTime "12:57:58 PST"]
[Termination "GMNeiksans won by resignation"]

1. d4 {[%clk 0:03:00]} 1... d5 {[%clk 0:02:52.6]} 2. c4 {[%clk 0:03:00.5]} 2...
c6 {[%clk 0:02:48]} 3. Nf3 {[%clk 0:03:01]} 3... Nf6 {[%clk 0:02:49.3]} 4. e3
{[%clk 0:03:01.9]} 4... Bg4 {[%clk 0:02:49.2]} 5. Nc3 {[%clk 0:02:59.3]} 5... e6
{[%clk 0:02:49.3]} 6. h3 {[%clk 0:03:00.5]} 6... Bxf3 {[%clk 0:02:50.1]} 7. Qxf3
{[%clk 0:03:01.1]} 7... Nbd7 {[%clk 0:02:49.9]} 8. Bd3 {[%clk 0:02:56.5]} 8...
Bb4 {[%clk 0:02:49.4]} 9. O-O {[%clk 0:02:57.1]} 9... O-O {[%clk 0:02:46.3]} 10.
Bd2 {[%clk 0:02:57.9]} 10... Re8 {[%clk 0:02:43]} 11. a3 {[%clk 0:02:49.9]}
11... Bxc3 {[%clk 0:02:38.8]} 12. Bxc3 {[%clk 0:02:50.8]} 12... dxc4 {[%clk
0:02:35.8]} 13. Bxc4 {[%clk 0:02:51.3]} 13... Nd5 {[%clk 0:02:37.7]} 14. Bd2
{[%clk 0:02:49.4]} 14... e5 {[%clk 0:02:18.9]} 15. e4 {[%clk 0:02:46.6]} 15...
N5f6 {[%clk 0:02:15.4]} 16. Qb3 {[%clk 0:01:47.7]} 16... Re7 {[%clk 0:02:08]}
17. Bb4 {[%clk 0:01:47]} 17... c5 {[%clk 0:02:00.8]} 18. dxc5 {[%clk 0:01:28]}
18... Nxe4 {[%clk 0:02:01.6]} 19. Qe3 {[%clk 0:01:19.5]} 19... a5 {[%clk
0:01:48.1]} 20. Qxe4 {[%clk 0:01:19.5]} 20... axb4 {[%clk 0:01:49.3]} 21. axb4
{[%clk 0:01:20.5]} 21... Rb8 {[%clk 0:01:48.7]} 22. Rfd1 {[%clk 0:01:18.6]}
22... Qc7 {[%clk 0:01:48.2]} 23. Rd6 {[%clk 0:01:15.2]} 23... Nf6 {[%clk
0:01:44.3]} 24. Qd3 {[%clk 0:01:14.8]} 24... Ne8 {[%clk 0:01:43.6]} 25. Rd1
{[%clk 0:01:12.2]} 25... b6 {[%clk 0:01:32.7]} 26. Rd7 {[%clk 0:01:10.5]} 26...
Rxd7 {[%clk 0:01:32]} 27. Qxd7 {[%clk 0:01:11.6]} 27... Qxd7 {[%clk 0:01:27.6]}
28. Rxd7 {[%clk 0:01:11.9]} 28... bxc5 {[%clk 0:01:25.1]} 29. bxc5 {[%clk
0:00:58.2]} 29... Rxb2 {[%clk 0:01:19.6]} 30. Bxf7+ {[%clk 0:00:48.9]} 30... Kf8
{[%clk 0:01:19]} 31. Bxe8 {[%clk 0:00:50.3]} 31... Kxe8 {[%clk 0:01:20.9]} 32.
Rxg7 {[%clk 0:00:51.5]} 32... Rc2 {[%clk 0:01:19.5]} 33. Rxh7 {[%clk 0:00:52.5]}
33... Rxc5 {[%clk 0:01:20.5]} 34. Kh2 {[%clk 0:00:53.6]} 34... Rc3 {[%clk
0:01:21.1]} 35. Rh5 {[%clk 0:00:53.3]} 35... e4 {[%clk 0:01:20.2]} 36. Re5+
{[%clk 0:00:54]} 1-0

[Event "*** Titled Tuesday 3|2 Blitz"]
[Site "Chess.com"]
[Date "2015.02.24"]
[Round "9"]
[White "Zvonokchess"]
[Black "FabianEnglert"]
[Result "1-0"]
[WhiteElo "2474"]
[BlackElo "2245"]
[TimeControl "180+2"]
[EndTime "12:58:59 PST"]
[Termination "Zvonokchess won by resignation"]

1. e4 {[%clk 0:02:09.5]} 1... g6 {[%clk 0:02:58.2]} 2. d4 {[%clk 0:02:10.3]}
2... Bg7 {[%clk 0:02:59.2]} 3. Nc3 {[%clk 0:02:11.8]} 3... a6 {[%clk 0:03:00]}
4. f4 {[%clk 0:02:11.3]} 4... b5 {[%clk 0:03:00.6]} 5. Nf3 {[%clk 0:02:12.7]}
5... Bb7 {[%clk 0:03:01.6]} 6. Bd3 {[%clk 0:02:13.6]} 6... d6 {[%clk 0:03:02.6]}
7. O-O {[%clk 0:02:14.4]} 7... Nd7 {[%clk 0:03:03.4]} 8. e5 {[%clk 0:02:15.4]}
8... c5 {[%clk 0:03:04]} 9. Be4 {[%clk 0:02:15.2]} 9... Bxe4 {[%clk 0:03:02.3]}
10. Nxe4 {[%clk 0:02:16.2]} 10... cxd4 {[%clk 0:02:57.5]} 11. exd6 {[%clk
0:02:16.7]} 11... Qb6 {[%clk 0:02:38.5]} 12. Kh1 {[%clk 0:02:07.1]} 12... e6
{[%clk 0:02:34.7]} 13. a4 {[%clk 0:02:04.4]} 13... b4 {[%clk 0:02:29.6]} 14. a5
{[%clk 0:01:36.8]} 14... Qc6 {[%clk 0:02:30.3]} 15. Re1 {[%clk 0:01:35]} 15...
Ngf6 {[%clk 0:02:16.6]} 16. Nxd4 {[%clk 0:01:25.5]} 16... Qd5 {[%clk 0:02:00.6]}
17. Nxf6+ {[%clk 0:01:25.1]} 17... Bxf6 {[%clk 0:02:01.5]} 18. Nxe6 {[%clk
0:01:18.5]} 18... Qxd1 {[%clk 0:01:38.1]} 19. Nc7+ {[%clk 0:01:19.5]} 19... Kf8
{[%clk 0:01:31.3]} 20. Rxd1 {[%clk 0:01:20.6]} 20... Rc8 {[%clk 0:01:27.9]} 21.
Nxa6 {[%clk 0:01:16.5]} 21... Rxc2 {[%clk 0:01:25.6]} 22. Nxb4 {[%clk
0:01:17.5]} 22... Re2 {[%clk 0:01:10.2]} 23. a6 {[%clk 0:01:04.6]} 23... Kg7
{[%clk 0:01:09.4]} 24. a7 {[%clk 0:01:05.9]} 24... Ra8 {[%clk 0:01:08.1]} 25.
Nd5 {[%clk 0:00:43.8]} 25... Bd4 {[%clk 0:01:04.1]} 26. Ra4 {[%clk 0:00:44.3]}
26... Bxa7 {[%clk 0:00:32]} 27. Nc7 {[%clk 0:00:39]} 27... Nb6 {[%clk
0:00:32.8]} 28. Ra1 {[%clk 0:00:23.1]} 28... Rae8 {[%clk 0:00:17.8]} 29. Nxe8+
{[%clk 0:00:23.1]} 1-0

[Event "*** Titled Tuesday 3|2 Blitz"]
[Site "Chess.com"]
[Date "2015.02.24"]
[Round "9"]
[White "destroyer305"]
[Black "FytNob"]
[Result "1-0"]
[WhiteElo "2123"]
[BlackElo "1874"]
[TimeControl "180+2"]
[EndTime "12:59:24 PST"]
[Termination "destroyer305 won by resignation"]

1. e4 {[%clk 0:03:00]} 1... Nc6 {[%clk 0:02:54.6]} 2. d4 {[%clk 0:03:00]} 2...
e5 {[%clk 0:02:55.1]} 3. Nf3 {[%clk 0:03:00.7]} 3... exd4 {[%clk 0:02:55.2]} 4.
Bc4 {[%clk 0:03:02.2]} 4... Bb4+ {[%clk 0:02:36.7]} 5. c3 {[%clk 0:03:02.6]}
5... dxc3 {[%clk 0:02:37.6]} 6. bxc3 {[%clk 0:03:02.5]} 6... Bc5 {[%clk
0:02:37.5]} 7. Bxf7+ {[%clk 0:03:00.1]} 7... Kxf7 {[%clk 0:02:37]} 8. Qd5+
{[%clk 0:03:01.5]} 8... Kf8 {[%clk 0:02:36.5]} 9. Qxc5+ {[%clk 0:03:02.9]} 9...
d6 {[%clk 0:02:38.1]} 10. Qb5 {[%clk 0:03:04.2]} 10... Nf6 {[%clk 0:02:33.8]}
11. Nbd2 {[%clk 0:03:01.6]} 11... Qe7 {[%clk 0:02:29.7]} 12. O-O {[%clk
0:03:02.3]} 12... h6 {[%clk 0:02:17.8]} 13. Re1 {[%clk 0:03:00.1]} 13... a6
{[%clk 0:02:18]} 14. Qb3 {[%clk 0:02:56.1]} 14... Qf7 {[%clk 0:02:14.3]} 15. Qb1
{[%clk 0:02:50.7]} 15... b6 {[%clk 0:02:03.7]} 16. Ba3 {[%clk 0:02:50]} 16...
Kg8 {[%clk 0:01:55.3]} 17. e5 {[%clk 0:02:46.4]} 17... Nxe5 {[%clk 0:01:54.9]}
18. Nxe5 {[%clk 0:02:46.4]} 18... dxe5 {[%clk 0:01:56.8]} 19. Rxe5 {[%clk
0:02:47.5]} 19... Bd7 {[%clk 0:01:49]} 20. Ne4 {[%clk 0:02:44.7]} 20... Re8
{[%clk 0:01:31.8]} 21. Nxf6+ {[%clk 0:02:09.9]} 21... Qxf6 {[%clk 0:01:31.9]}
22. Rxe8+ {[%clk 0:02:10.7]} 22... Bxe8 {[%clk 0:01:33.8]} 23. Qe4 {[%clk
0:02:08.3]} 23... Bg6 {[%clk 0:01:31.2]} 24. Qc4+ {[%clk 0:02:04.9]} 24... Qf7
{[%clk 0:01:29.2]} 25. Qxa6 {[%clk 0:02:05.7]} 25... Kh7 {[%clk 0:01:29.2]} 26.
Re1 {[%clk 0:01:36.4]} 26... Qxa2 {[%clk 0:01:26.9]} 27. h4 {[%clk 0:01:26.4]}
27... Rf8 {[%clk 0:01:23.8]} 28. Re2 {[%clk 0:01:08.2]} 28... Qb1+ {[%clk
0:01:24.3]} 29. Kh2 {[%clk 0:01:09.1]} 29... Bd3 {[%clk 0:01:25.9]} 30. Rb2
{[%clk 0:01:03.6]} 30... Qxb2 {[%clk 0:01:23.5]} 31. Qxd3+ {[%clk 0:01:04.5]}
31... Kh8 {[%clk 0:01:16.6]} 32. Bxb2 {[%clk 0:01:05.6]} 32... Rxf2 {[%clk
0:01:17.5]} 33. Bc1 {[%clk 0:01:01.2]} 33... Rf7 {[%clk 0:01:11]} 34. Qe4 {[%clk
0:00:54]} 34... Rf1 {[%clk 0:00:57.7]} 35. Bf4 {[%clk 0:00:49.7]} 35... c5
{[%clk 0:00:52]} 36. Bc7 {[%clk 0:00:46.3]} 36... Rf6 {[%clk 0:00:49.5]} 37. c4
{[%clk 0:00:43.8]} 37... Kg8 {[%clk 0:00:47.6]} 38. Qe8+ {[%clk 0:00:42.4]}
38... Kh7 {[%clk 0:00:48.3]} 39. Qb8 {[%clk 0:00:43.9]} 39... Kg6 {[%clk
0:00:39.6]} 40. Bxb6 {[%clk 0:00:43.8]} 40... Kh5 {[%clk 0:00:41]} 41. Bxc5
{[%clk 0:00:42.4]} 41... Rc6 {[%clk 0:00:32.7]} 42. Qe8+ {[%clk 0:00:42.1]}
42... Rg6 {[%clk 0:00:33.9]} 43. g4+ {[%clk 0:00:40.9]} 1-0

[Event "*** Titled Tuesday 3|2 Blitz"]
[Site "Chess.com"]
[Date "2015.02.24"]
[Round "9"]
[White "GasconJR"]
[Black "LuckyTiger"]
[Result "0-1"]
[WhiteElo "2284"]
[BlackElo "2469"]
[TimeControl "180+2"]
[EndTime "12:59:33 PST"]
[Termination "LuckyTiger won by resignation"]

1. e4 {[%clk 0:03:00]} 1... c5 {[%clk 0:02:57.7]} 2. Nf3 {[%clk 0:03:00.9]} 2...
d6 {[%clk 0:02:58.9]} 3. d4 {[%clk 0:03:02.2]} 3... Nf6 {[%clk 0:03:00.5]} 4.
Nc3 {[%clk 0:03:02.5]} 4... cxd4 {[%clk 0:03:02.1]} 5. Nxd4 {[%clk 0:03:03.9]}
5... a6 {[%clk 0:03:04]} 6. Bg5 {[%clk 0:03:03.3]} 6... e6 {[%clk 0:03:04.9]} 7.
f4 {[%clk 0:03:04.2]} 7... Nc6 {[%clk 0:03:06.5]} 8. Nxc6 {[%clk 0:03:04.7]}
8... bxc6 {[%clk 0:03:08.4]} 9. e5 {[%clk 0:03:05.3]} 9... h6 {[%clk 0:03:09.8]}
10. Bh4 {[%clk 0:03:06.9]} 10... g5 {[%clk 0:03:10.9]} 11. fxg5 {[%clk
0:03:08.6]} 11... Nd5 {[%clk 0:03:12.3]} 12. Ne4 {[%clk 0:03:10]} 12... Qb6
{[%clk 0:03:13.7]} 13. c3 {[%clk 0:03:10.4]} 13... dxe5 {[%clk 0:03:06.3]} 14.
g6 {[%clk 0:02:23]} 14... fxg6 {[%clk 0:02:41.6]} 15. Bd3 {[%clk 0:02:23.2]}
15... Qe3+ {[%clk 0:02:33.9]} 16. Qe2 {[%clk 0:02:02.4]} 16... Qxe2+ {[%clk
0:02:33]} 17. Bxe2 {[%clk 0:02:02.4]} 17... Be7 {[%clk 0:02:19.8]} 18. Bxe7
{[%clk 0:02:02.9]} 18... Kxe7 {[%clk 0:02:21.7]} 19. O-O {[%clk 0:02:03.8]}
19... Bd7 {[%clk 0:02:21.2]} 20. Rf2 {[%clk 0:01:35.9]} 20... Rhf8 {[%clk
0:02:18.5]} 21. Rxf8 {[%clk 0:01:36.5]} 21... Kxf8 {[%clk 0:02:17.7]} 22. Rf1+
{[%clk 0:01:37.4]} 22... Ke7 {[%clk 0:02:19.2]} 23. Nc5 {[%clk 0:01:19.2]} 23...
a5 {[%clk 0:02:10.1]} 24. Bd3 {[%clk 0:01:19]} 24... Nf4 {[%clk 0:02:08.6]} 25.
Be4 {[%clk 0:01:18.1]} 25... Be8 {[%clk 0:02:07.3]} 26. g3 {[%clk 0:01:17.6]}
26... Nd5 {[%clk 0:02:04.8]} 27. c4 {[%clk 0:01:16.4]} 27... Ne3 {[%clk
0:01:49.7]} 28. Rc1 {[%clk 0:01:13.2]} 28... Rd8 {[%clk 0:01:50.2]} 29. Nd3
{[%clk 0:01:14]} 29... Rd4 {[%clk 0:01:46.5]} 30. Nf2 {[%clk 0:01:10.1]} 30...
c5 {[%clk 0:01:29.8]} 31. b3 {[%clk 0:01:10.2]} 31... Nf5 {[%clk 0:01:10.3]} 32.
Rd1 {[%clk 0:01:07.6]} 32... Nd6 {[%clk 0:00:58.7]} 33. Bc2 {[%clk 0:01:01]}
33... g5 {[%clk 0:00:56.8]} 34. Kf1 {[%clk 0:01:00.5]} 34... a4 {[%clk
0:00:55.5]} 35. Nd3 {[%clk 0:00:54.1]} 35... Ne4 {[%clk 0:00:45.9]} 36. Nxe5
{[%clk 0:00:51.4]} 36... Rxd1+ {[%clk 0:00:47]} 37. Bxd1 {[%clk 0:00:51.9]}
37... Nc3 {[%clk 0:00:48.7]} 38. Bc2 {[%clk 0:00:49.9]} 38... a3 {[%clk
0:00:50.2]} 39. Nd3 {[%clk 0:00:28.6]} 39... Nxa2 {[%clk 0:00:49.6]} 40. Nxc5
{[%clk 0:00:21.9]} 40... Nb4 {[%clk 0:00:50.9]} 41. Bb1 {[%clk 0:00:22.8]} 41...
Bg6 {[%clk 0:00:51.7]} 0-1

[Event "*** Titled Tuesday 3|2 Blitz"]
[Site "Chess.com"]
[Date "2015.02.24"]
[Round "9"]
[White "Gevorg_Harutjunyan"]
[Black "AndreyOstrovskiy"]
[Result "1-0"]
[WhiteElo "2511"]
[BlackElo "2334"]
[TimeControl "180+2"]
[EndTime "12:59:41 PST"]
[Termination "Gevorg_Harutjunyan won by resignation"]

1. e4 {[%clk 0:02:59.4]} 1... e5 {[%clk 0:02:58.6]} 2. Nf3 {[%clk 0:03:00.4]}
2... Nc6 {[%clk 0:02:58.8]} 3. Bb5 {[%clk 0:03:01.9]} 3... a6 {[%clk 0:02:59.8]}
4. Ba4 {[%clk 0:03:03.3]} 4... Nf6 {[%clk 0:03:01]} 5. O-O {[%clk 0:03:04.6]}
5... Be7 {[%clk 0:03:02.6]} 6. Re1 {[%clk 0:03:05.5]} 6... b5 {[%clk 0:03:03.7]}
7. Bb3 {[%clk 0:03:07]} 7... d6 {[%clk 0:03:05.1]} 8. c3 {[%clk 0:03:08.4]} 8...
O-O {[%clk 0:03:06.3]} 9. h3 {[%clk 0:03:09.9]} 9... h6 {[%clk 0:03:07.1]} 10.
d4 {[%clk 0:03:11.1]} 10... Re8 {[%clk 0:03:08.7]} 11. Nbd2 {[%clk 0:03:10.9]}
11... Bf8 {[%clk 0:03:10.3]} 12. Bc2 {[%clk 0:03:12]} 12... Bd7 {[%clk
0:03:10.7]} 13. Nf1 {[%clk 0:03:13.2]} 13... Na5 {[%clk 0:03:08.1]} 14. Ng3
{[%clk 0:03:13.9]} 14... Nc4 {[%clk 0:03:09.1]} 15. b3 {[%clk 0:03:12.2]} 15...
Nb6 {[%clk 0:03:09.8]} 16. Bb2 {[%clk 0:02:59.5]} 16... c5 {[%clk 0:03:10]} 17.
Qd3 {[%clk 0:02:54.6]} 17... c4 {[%clk 0:03:10.2]} 18. Qd2 {[%clk 0:02:55]}
18... g6 {[%clk 0:02:55.7]} 19. Rad1 {[%clk 0:02:48.5]} 19... Qc8 {[%clk
0:02:53.9]} 20. Ba3 {[%clk 0:02:43.7]} 20... Bxh3 {[%clk 0:02:02.9]} 21. gxh3
{[%clk 0:02:40.5]} 21... Qxh3 {[%clk 0:02:03.6]} 22. dxe5 {[%clk 0:02:25]} 22...
dxe5 {[%clk 0:02:04.2]} 23. Bxf8 {[%clk 0:02:25]} 23... Rxf8 {[%clk 0:02:04.8]}
24. Qe2 {[%clk 0:02:16.4]} 24... Rfe8 {[%clk 0:01:56]} 25. Rd6 {[%clk
0:02:14.5]} 25... Nfd7 {[%clk 0:01:48.4]} 26. Red1 {[%clk 0:02:12.9]} 26... Rac8
{[%clk 0:01:47.9]} 27. Qe3 {[%clk 0:02:12.4]} 27... Qg4 {[%clk 0:01:44.6]} 28.
Nh2 {[%clk 0:02:07.5]} 28... Qf4 {[%clk 0:01:37.1]} 29. Rxd7 {[%clk 0:02:05.6]}
29... Qxe3 {[%clk 0:01:36.1]} 30. fxe3 {[%clk 0:02:06]} 30... Nxd7 {[%clk
0:01:37.2]} 31. Rxd7 {[%clk 0:02:07.9]} 31... Red8 {[%clk 0:01:35.7]} 32. Rxd8+
{[%clk 0:02:07.4]} 32... Rxd8 {[%clk 0:01:37.1]} 33. Ngf1 {[%clk 0:02:08.6]}
33... cxb3 {[%clk 0:01:35.6]} 34. Bxb3 {[%clk 0:02:09.4]} 34... Rc8 {[%clk
0:01:31.6]} 35. Ng4 {[%clk 0:02:10.8]} 35... Rxc3 {[%clk 0:01:26.2]} 36. Nxe5
{[%clk 0:02:11.6]} 36... Kg7 {[%clk 0:01:26.3]} 37. Nxf7 {[%clk 0:02:09.1]}
37... a5 {[%clk 0:01:26.2]} 38. Bd5 {[%clk 0:02:09.2]} 38... b4 {[%clk
0:01:19.4]} 39. Nd6 {[%clk 0:02:10.4]} 39... a4 {[%clk 0:01:16]} 40. Nb5 {[%clk
0:02:10.9]} 40... Rc2 {[%clk 0:01:08.7]} 41. Nd4 {[%clk 0:02:11.5]} 41... Rb2
{[%clk 0:01:06]} 42. e5 {[%clk 0:02:13]} 42... g5 {[%clk 0:01:05.5]} 43. Ng3
{[%clk 0:02:13.6]} 43... Kg6 {[%clk 0:00:59.1]} 44. e6 {[%clk 0:02:14.3]} 44...
Kf6 {[%clk 0:00:59.1]} 45. Ngf5 {[%clk 0:02:14]} 45... b3 {[%clk 0:00:52]} 46.
axb3 {[%clk 0:02:04.8]} 46... a3 {[%clk 0:00:52.7]} 47. b4 {[%clk 0:02:05.5]}
47... a2 {[%clk 0:00:39.3]} 48. Bxa2 {[%clk 0:02:04.2]} 48... Rxa2 {[%clk
0:00:40.7]} 49. Nxh6 {[%clk 0:02:04.1]} 49... Rb2 {[%clk 0:00:32.8]} 50. b5
{[%clk 0:02:05.2]} 50... Ke7 {[%clk 0:00:20.6]} 51. Nhf5+ {[%clk 0:02:06.3]}
51... Kf6 {[%clk 0:00:21.8]} 52. e7 {[%clk 0:02:07.2]} 52... Kf7 {[%clk
0:00:23.1]} 53. e4 {[%clk 0:02:04.5]} 53... g4 {[%clk 0:00:23.8]} 54. e5 {[%clk
0:02:05.9]} 54... Ke8 {[%clk 0:00:24]} 55. Nc6 {[%clk 0:02:04.2]} 55... Kd7
{[%clk 0:00:16.6]} 56. Nd6 {[%clk 0:02:05.2]} 56... Rb1+ {[%clk 0:00:11.1]} 57.
Kg2 {[%clk 0:02:05.9]} 57... Rb2+ {[%clk 0:00:12.5]} 58. Kg3 {[%clk 0:02:07.2]}
58... Rb3+ {[%clk 0:00:13.7]} 59. Kxg4 {[%clk 0:02:08.6]} 1-0

[Event "*** Titled Tuesday 3|2 Blitz"]
[Site "Chess.com"]
[Date "2015.02.24"]
[Round "9"]
[White "LyonBeast"]
[Black "DanielNaroditsky"]
[Result "1-0"]
[WhiteElo "2764"]
[BlackElo "2582"]
[TimeControl "180+2"]
[EndTime "12:59:42 PST"]
[Termination "LyonBeast won by resignation"]

1. b3 {[%clk 0:03:00]} 1... d5 {[%clk 0:02:57.3]} 2. e3 {[%clk 0:02:59]} 2...
Bf5 {[%clk 0:02:57]} 3. Bb2 {[%clk 0:02:57]} 3... e6 {[%clk 0:02:58.5]} 4. Nf3
{[%clk 0:02:57.9]} 4... Nf6 {[%clk 0:02:59.8]} 5. Be2 {[%clk 0:02:54.5]} 5...
Be7 {[%clk 0:03:01]} 6. O-O {[%clk 0:02:54.4]} 6... O-O {[%clk 0:03:02.2]} 7. c4
{[%clk 0:02:54.5]} 7... c6 {[%clk 0:03:03]} 8. d3 {[%clk 0:02:54.6]} 8... Nbd7
{[%clk 0:03:03.8]} 9. Nh4 {[%clk 0:02:54.8]} 9... Bg6 {[%clk 0:03:02.4]} 10. Nd2
{[%clk 0:02:55.2]} 10... a5 {[%clk 0:02:59.9]} 11. a3 {[%clk 0:02:54.9]} 11...
Nc5 {[%clk 0:03:01]} 12. Nxg6 {[%clk 0:02:53.5]} 12... hxg6 {[%clk 0:03:02.1]}
13. Qc2 {[%clk 0:02:53.4]} 13... Bd6 {[%clk 0:03:00.6]} 14. Rfc1 {[%clk
0:02:53.6]} 14... Rc8 {[%clk 0:02:59.9]} 15. b4 {[%clk 0:02:51.9]} 15... axb4
{[%clk 0:02:59.4]} 16. axb4 {[%clk 0:02:53.8]} 16... Na6 {[%clk 0:03:01]} 17. c5
{[%clk 0:02:54.9]} 17... Bb8 {[%clk 0:02:51.8]} 18. Bxf6 {[%clk 0:02:44.3]}
18... Qxf6 {[%clk 0:02:45.3]} 19. d4 {[%clk 0:02:45.9]} 19... Nc7 {[%clk
0:02:38.6]} 20. f4 {[%clk 0:02:47]} 20... g5 {[%clk 0:02:38.8]} 21. Rf1 {[%clk
0:02:47.5]} 21... Ne8 {[%clk 0:02:32]} 22. Qd3 {[%clk 0:02:16.1]} 22... Qh6
{[%clk 0:02:30]} 23. g3 {[%clk 0:02:15.3]} 23... Nf6 {[%clk 0:02:27.9]} 24. b5
{[%clk 0:02:08.7]} 24... g6 {[%clk 0:02:19.4]} 25. Nf3 {[%clk 0:02:02.3]} 25...
Ne4 {[%clk 0:02:15.1]} 26. b6 {[%clk 0:02:00.6]} 26... Kg7 {[%clk 0:02:11.5]}
27. Qc2 {[%clk 0:02:01.2]} 27... Rh8 {[%clk 0:01:57]} 28. Bd3 {[%clk 0:01:57.6]}
28... gxf4 {[%clk 0:01:27.9]} 29. exf4 {[%clk 0:01:56.6]} 29... Nf6 {[%clk
0:01:27.1]} 30. Rae1 {[%clk 0:01:44.5]} 30... Ng4 {[%clk 0:01:28.4]} 31. h4
{[%clk 0:01:38.4]} 31... Nf6 {[%clk 0:01:23.6]} 32. Ng5 {[%clk 0:01:31]} 32...
Rce8 {[%clk 0:01:21.5]} 33. Qf2 {[%clk 0:01:30.2]} 33... Ng4 {[%clk 0:01:19]}
34. Qf3 {[%clk 0:01:29.7]} 34... Nf6 {[%clk 0:01:15.9]} 35. Re2 {[%clk
0:01:20.8]} 35... Qh5 {[%clk 0:01:16.7]} 36. Qxh5 {[%clk 0:01:18.5]} 36... Nxh5
{[%clk 0:01:17.9]} 37. Kg2 {[%clk 0:01:16.2]} 37... Re7 {[%clk 0:01:16.9]} 38.
Ree1 {[%clk 0:01:05.3]} 38... Rhe8 {[%clk 0:01:16.7]} 39. Be2 {[%clk 0:01:06.3]}
39... f6 {[%clk 0:00:56.5]} 40. Bxh5 {[%clk 0:01:04.7]} 40... fxg5 {[%clk
0:00:55.5]} 41. Bg4 {[%clk 0:01:00.7]} 41... gxf4 {[%clk 0:00:55.7]} 42. gxf4
{[%clk 0:01:00.6]} 42... Kf6 {[%clk 0:00:49.9]} 43. Kg3 {[%clk 0:00:59.4]} 43...
Rh8 {[%clk 0:00:49.7]} 44. Rf3 {[%clk 0:00:59]} 44... Rhe8 {[%clk 0:00:47.7]}
45. Rfe3 {[%clk 0:00:59.5]} 45... Kf7 {[%clk 0:00:47.5]} 46. Kf3 {[%clk
0:00:57.4]} 46... Kf6 {[%clk 0:00:49.1]} 47. R3e2 {[%clk 0:00:57.1]} 47... Kf7
{[%clk 0:00:42.5]} 48. h5 {[%clk 0:00:57.1]} 48... Kf6 {[%clk 0:00:35]} 49. hxg6
{[%clk 0:00:56.6]} 49... Kxg6 {[%clk 0:00:36.7]} 50. Rxe6+ {[%clk 0:00:57]}
50... Rxe6 {[%clk 0:00:38.2]} 51. Rxe6+ {[%clk 0:00:58.8]} 1-0

[Event "*** Titled Tuesday 3|2 Blitz"]
[Site "Chess.com"]
[Date "2015.02.24"]
[Round "9"]
[White "Carolina-moon"]
[Black "MattyDPerrine"]
[Result "1-0"]
[WhiteElo "1919"]
[BlackElo "2032"]
[TimeControl "180+2"]
[EndTime "12:59:46 PST"]
[Termination "Carolina-moon won by resignation"]

1. e4 {[%clk 0:03:00]} 1... c5 {[%clk 0:02:57.8]} 2. Nf3 {[%clk 0:02:59.9]} 2...
e6 {[%clk 0:02:58.7]} 3. d4 {[%clk 0:02:56.5]} 3... cxd4 {[%clk 0:03:00.6]} 4.
Nxd4 {[%clk 0:02:57.5]} 4... Nf6 {[%clk 0:03:01.6]} 5. Nc3 {[%clk 0:02:57.6]}
5... d6 {[%clk 0:03:02.9]} 6. g3 {[%clk 0:02:52.6]} 6... a6 {[%clk 0:03:02.6]}
7. Bg2 {[%clk 0:02:53]} 7... Qc7 {[%clk 0:03:03.8]} 8. O-O {[%clk 0:02:51.2]}
8... Be7 {[%clk 0:03:05.2]} 9. a4 {[%clk 0:02:50.7]} 9... O-O {[%clk 0:03:05.9]}
10. h3 {[%clk 0:02:50.8]} 10... Nc6 {[%clk 0:03:06.9]} 11. Be3 {[%clk
0:02:51.5]} 11... Ne5 {[%clk 0:03:07.7]} 12. Qe2 {[%clk 0:02:45]} 12... Rb8
{[%clk 0:02:51.2]} 13. f4 {[%clk 0:02:34.1]} 13... Nc4 {[%clk 0:02:51.8]} 14.
Bc1 {[%clk 0:02:35]} 14... Bd7 {[%clk 0:01:57.1]} 15. b3 {[%clk 0:02:29.8]}
15... Nb6 {[%clk 0:01:39.9]} 16. Bb2 {[%clk 0:02:30.5]} 16... Rfd8 {[%clk
0:01:28.1]} 17. Qf2 {[%clk 0:02:27]} 17... Rbc8 {[%clk 0:01:09.7]} 18. a5 {[%clk
0:02:20.9]} 18... Na8 {[%clk 0:01:10.1]} 19. g4 {[%clk 0:02:14.7]} 19... b6
{[%clk 0:00:47.8]} 20. axb6 {[%clk 0:02:09.1]} 20... Qxb6 {[%clk 0:00:49.3]} 21.
Kh1 {[%clk 0:01:41.7]} 21... Bf8 {[%clk 0:00:35.3]} 22. Na4 {[%clk 0:01:27.9]}
22... Qc7 {[%clk 0:00:33]} 23. c4 {[%clk 0:01:24.4]} 23... Nb6 {[%clk
0:00:28.2]} 24. Nc3 {[%clk 0:01:20.8]} 24... e5 {[%clk 0:00:09.7]} 25. Nf5
{[%clk 0:01:14.5]} 25... Bxf5 {[%clk 0:00:08.3]} 26. gxf5 {[%clk 0:01:12.3]}
26... Re8 {[%clk 0:00:05.6]} 27. Rxa6 {[%clk 0:01:07]} 27... Nbd7 {[%clk
0:00:06.3]} 28. Ra7 {[%clk 0:01:05]} 28... Qb6 {[%clk 0:00:04.3]} 29. Qxb6
{[%clk 0:01:03.6]} 29... Nxb6 {[%clk 0:00:05.3]} 30. fxe5 {[%clk 0:01:02.4]}
30... dxe5 {[%clk 0:00:07.2]} 31. Nb5 {[%clk 0:01:02.6]} 31... Bc5 {[%clk
0:00:07.7]} 32. Rb7 {[%clk 0:01:02]} 32... Rb8 {[%clk 0:00:08.2]} 33. Rxb8
{[%clk 0:01:00.9]} 33... Rxb8 {[%clk 0:00:10.1]} 34. Ra1 {[%clk 0:01:01]} 34...
Nfd7 {[%clk 0:00:10.2]} 35. Kh2 {[%clk 0:00:58.9]} 35... f6 {[%clk 0:00:11.1]}
36. Kg3 {[%clk 0:00:59.8]} 36... Kf7 {[%clk 0:00:12.1]} 37. Bf3 {[%clk
0:01:00.2]} 37... Rb7 {[%clk 0:00:13]} 38. Ra6 {[%clk 0:00:56.8]} 38... Be7
{[%clk 0:00:13.3]} 39. Bh5+ {[%clk 0:00:56.1]} 39... Kf8 {[%clk 0:00:13.6]} 40.
Ba3 {[%clk 0:00:52.6]} 40... Bxa3 {[%clk 0:00:11.3]} 41. Rxa3 {[%clk 0:00:54.5]}
41... Nc5 {[%clk 0:00:09.1]} 42. Nd6 {[%clk 0:00:54]} 42... Rd7 {[%clk
0:00:06.9]} 43. b4 {[%clk 0:00:52.1]} 43... Nxe4+ {[%clk 0:00:03.1]} 44. Nxe4
{[%clk 0:00:52.4]} 44... Nxc4 {[%clk 0:00:05]} 45. Ra8+ {[%clk 0:00:50]} 1-0